bitfinex-derivatives/quotes_SOLF0:USTF0_20251207
["timestamp","ask_amount","ask_price","bid_price","bid_amount"]
[1765066534239,2.87973767,131.99,131.98,10.13083499]
[1765066536637,2.87973767,131.99,131.98,3.12]
[1765066537553,2.87973767,131.99,131.97,9.3496054]
[1765066537849,2.87973767,131.99,131.98,7.02235487]
[1765066539241,2.87973767,131.99,131.97,9.3496054]
[1765066539438,2.87973767,131.99,131.97,12.4696054]
[1765066543955,2.87973767,131.99,131.98,7.03092046]
[1765066545152,2.87973767,131.99,131.97,7.03092046]
[1765066546242,2.87973767,131.99,131.98,7.03092046]
[1765066547254,2.87973767,131.99,131.97,7.03092046]
[1765066548756,2.87973767,131.99,131.97,10.28092046]
[1765066550266,2.87973767,131.99,131.98,7.03092046]
[1765066552163,2.87973767,131.99,131.98,10.28092046]
[1765066553366,2.87973767,131.99,131.98,7.03092046]
[1765066553554,2.87973767,131.99,131.98,10.28092046]
[1765066554061,0.05076023,131.99,131.98,3.25]
[1765066556060,0.00076023,131.99,131.98,3.25]
[1765066556254,71.4961,132.02,131.99,3.25]
[1765066556457,71.4961,132.02,132.01,10.2785005]
[1765066557270,71.4961,132.02,132.01,3.25]
[1765066557459,71.4961,132.02,132.01,10.2785005]
[1765066558472,71.4961,132.02,132.01,7.0285005]
[1765066558865,71.4961,132.02,132.0,10.33658636]
[1765066559066,2.82897744,132.01,132.0,10.33658636]
[1765066559266,2.82897744,132.01,132.0,10.33323238]
[1765066559869,2.82897744,132.01,132.0,3.30808586]
[1765066560265,71.4961,132.02,132.01,3.25]
[1765066560469,71.4961,132.02,132.01,10.27408485]
[1765066561267,71.4961,132.02,132.01,3.25]
[1765066561464,71.4961,132.02,132.01,10.2730008]
[1765066562265,71.4961,132.02,132.01,7.0230008]
[1765066562473,71.4961,132.02,132.0,10.33108666]
[1765066564976,71.4961,132.02,132.0,7.08108666]
[1765066564977,177.5224,132.02,132.0,7.08108666]
[1765066565474,181.93991082,132.02,132.0,7.08108666]
[1765066566073,181.93991082,132.02,132.0,0.05808586]
[1765066573867,181.93991082,132.02,132.0,3.30808586]
[1765066574071,181.93991082,132.02,132.0,0.05808586]
[1765066579576,106.0582,131.98,131.95,9.371334]
[1765066579778,64.68,131.97,131.94,12.471334]
[1765066580079,170.7468,131.97,131.94,12.471334]
[1765066580677,170.79749895,131.97,131.94,12.52007495]
[1765066581688,6.8194,131.96,131.94,12.52007495]
[1765066581890,64.68,131.95,131.94,12.52007495]
[1765066584595,0.05069895,131.97,131.95,3.1]
[1765066584892,64.73069895,131.97,131.95,3.1]
[1765066589796,117.31111082,131.96,131.94,7.495e-05]
[1765066597302,64.7,131.95,131.94,7.495e-05]
[1765066609116,0.05069895,131.97,131.95,3.34]
[1765066609312,64.7,132.01,131.95,3.34]
[1765066609517,6.8171,132.0,131.95,3.34]
[1765066609709,64.7,132.01,131.95,3.34]
[1765066609910,64.7,132.01,131.96,3.34]
[1765066610312,0.05022914,132.0,131.98,3.34]
[1765066619528,0.05022914,132.0,131.97,3.21253057]
[1765066621822,0.00022914,132.0,131.97,3.21253057]
[1765066622021,2.82811336,132.03,131.99,3.16]
[1765066623022,0.05312203,132.02,132.0,0.04962264]
[1765066623223,0.05312203,132.02,132.01,3.16]
[1765066625630,64.68,132.05,132.01,3.16]
[1765066625824,2.82811336,132.06,132.01,3.16]
[1765066626728,0.05121832,132.05,132.01,3.16]
[1765066640529,0.05121832,132.05,132.03,3.35]
[1765066640731,0.05121832,132.05,132.03,3.40179501]
[1765066645644,2.82811336,132.09,132.03,3.40179501]
[1765066646233,2.82811336,132.09,132.04,3.35]
[1765066646639,0.05163381,132.08,132.05,3.35]
[1765066646843,0.05163381,132.08,132.07,3.35]
[1765066648146,105.9262,132.15,132.07,3.35]
[1765066648452,2.82811336,132.12,132.07,3.35]
[1765066648952,2.82811336,132.1,132.05,3.35]
[1765066649347,0.05111804,132.09,132.07,3.35]
[1765066654056,67.46811336,132.14,132.08,3.35]
[1765066655052,0.05095452,132.12,132.1,0.05489669]
[1765066655257,0.05095452,132.12,132.11,3.35]
[1765066664958,9.63641336,132.17,132.11,3.35]
[1765066666052,0.05346133,132.15,132.13,3.40127891]
[1765066668169,2.88157469,132.15,132.13,3.40127891]
[1765066670664,108.80387469,132.15,132.1,3.34]
[1765066670867,2.82811336,132.13,132.1,3.34]
[1765066671557,9.63831336,132.13,132.1,3.34]
[1765066671759,2.88157469,132.15,132.1,3.3967524]
[1765066673580,9.69087469,132.15,132.1,3.3967524]
[1765066674568,6.81,132.14,132.1,3.3967524]
[1765066675869,2.82811336,132.13,132.1,3.3967524]
[1765066676666,2.82811336,132.11,132.1,0.0567524]
[1765066679468,6.812,132.1,132.06,3.09]
[1765066679770,2.82811336,132.08,132.06,3.09]
[1765066680668,2.88063881,132.08,132.06,0.0508147]
[1765066681568,9.69373881,132.08,132.06,0.0508147]
[1765066682374,64.62,132.07,132.06,0.0508147]
[1765066686572,69.03532506,132.07,132.06,0.0508147]
[1765066690582,6.8142,132.06,132.0,12.42530075]
[1765066690783,4.41532506,132.05,132.01,3.09]
[1765066690967,64.62,132.04,132.01,3.09]
[1765066691671,64.67702578,132.04,132.01,3.14039355]
[1765066694674,0.05702578,132.04,132.01,3.14039355]
[1765066702285,6.8124,132.09,132.02,3.34]
[1765066702475,64.64,132.11,132.03,3.34]
[1765066702791,64.64,132.11,132.04,3.34]
[1765066703289,0.05795663,132.09,132.07,3.34]
[1765066708284,6.8093,132.15,132.07,3.34]
[1765066708484,71.4493,132.15,132.07,3.34]
[1765066708684,110.34512506,132.14,132.07,3.34]
[1765066709383,0.05746556,132.12,132.09,3.39831321]
[1765066722394,0.05746556,132.12,132.1,3.34]
[1765066722693,0.05746556,132.12,132.11,3.34]
[1765066726088,0.04890652,132.15,132.13,0.04795849]
[1765066726289,0.04890652,132.15,132.13,3.38795849]
[1765066727592,6.85840652,132.15,132.13,3.38795849]
[1765066732002,0.04890652,132.15,132.13,3.38795849]
[1765066735899,0.04890652,132.15,132.13,0.04795849]
[1765066736400,0.04890652,132.15,132.13,3.40795849]
[1765066742802,0.04890652,132.15,132.13,12.74325924]
[1765066743015,0.04890652,132.15,132.14,3.36]
[1765066743214,64.6,132.18,132.14,3.36]
[1765066743514,64.6,132.2,132.15,3.36]
[1765066744408,2.82011174,132.19,132.16,0.05011943]
[1765066744601,108.71141174,132.19,132.16,0.05011943]
[1765066745606,6.808,132.18,132.16,0.05011943]
[1765066748514,64.6,132.17,132.16,0.05011943]
[1765066748812,67.42011174,132.17,132.16,0.05011943]
[1765066753506,64.6,132.17,132.16,3.41011943]
[1765066754816,2.82011174,132.19,132.16,3.41011943]
[1765066755013,67.42011174,132.19,132.16,3.41011943]
[1765066755919,2.82011174,132.17,132.16,0.05011943]
[1765066757214,2.82011174,132.17,132.12,12.69530075]
[1765066757415,64.58,132.16,132.12,12.69530075]
[1765066757717,2.82011174,132.15,132.12,12.69530075]
[1765066758322,2.87231191,132.15,132.12,12.75222096]
[1765066758518,2.87231191,132.15,132.12,3.41692021]
[1765066760918,2.82011174,132.13,132.12,0.05692021]
[1765066762522,2.82011174,132.13,132.12,3.36692021]
[1765066763625,9.68181191,132.15,132.12,3.36692021]
[1765066768834,9.68181191,132.15,132.12,0.05692021]
[1765066769332,9.68181191,132.15,132.12,3.36692021]
[1765066776740,6.81,132.14,132.12,3.36692021]
[1765066788258,6.81,132.14,132.12,0.05692021]
[1765066789458,105.9451,132.12,132.09,9.33530075]
[1765066789659,2.82011174,132.11,132.08,12.51530075]
[1765066790451,9.68709828,132.11,132.08,12.57123766]
[1765066791665,64.6,132.1,132.08,12.57123766]
[1765066794756,71.4121,132.1,132.08,12.57123766]
[1765066794953,2.82011174,132.09,132.08,0.05593691]
[1765066797066,6.8128,132.08,132.06,9.33530075]
[1765066797266,67.42011174,132.07,132.06,9.33530075]
[1765066798265,6.8138,132.06,132.05,9.39031214]
[1765066798455,6.8138,132.06,132.05,0.05501139]
[1765066800570,6.8138,132.06,131.95,171.99313577]
[1765066800571,6.8154,132.03,132.0,12.44530075]
[1765066800772,74.23551174,132.03,132.0,12.44530075]
[1765066801360,64.6558449,132.03,132.01,3.11]
[1765066809370,64.6558449,132.03,132.0,3.16681071]
[1765066814574,0.0558449,132.03,132.0,3.16681071]
[1765066815478,0.0558449,132.03,132.01,3.11]
[1765066817571,0.0558449,132.03,132.0,12.74211146]
[1765066817772,0.0558449,132.03,132.0,3.40681071]
[1765066831380,0.0558449,132.03,132.02,3.35]
[1765066831586,64.64,132.08,132.02,3.35]
[1765066832575,64.64,132.08,132.01,9.33530075]
[1765066832576,0.05051542,132.06,132.04,3.40335828]
[1765066841293,0.05051542,132.06,132.05,3.35]
[1765066845996,0.05051542,132.06,132.05,12.68530075]
[1765066860394,0.05051542,132.06,132.05,3.35]
[1765066860705,0.05051542,132.06,132.05,12.68530075]
[1765066862507,0.05051542,132.06,132.05,3.35]
[1765066863009,0.05051542,132.06,132.05,12.68530075]
[1765066871512,0.05051542,132.06,132.05,3.35]
[1765066872110,9.63683878,132.1,132.05,3.35]
[1765066872309,108.77513878,132.12,132.09,3.04]
[1765066872706,9.63593878,132.12,132.09,3.04]
[1765066873310,9.68778753,132.12,132.09,3.09174064]
[1765066875511,9.68778753,132.12,132.1,3.04]
[1765066882810,71.4115,132.11,132.09,0.05174064]
[1765066883118,2.82493878,132.1,132.09,0.05174064]
[1765066884713,6.8115,132.11,132.09,3.41174064]
[1765066884913,6.86284875,132.12,132.09,3.41174064]
[1765066893928,6.86284875,132.12,132.1,3.36]
[1765066907246,6.86284875,132.12,132.1,3.36]
[1765066914246,6.86284875,132.12,132.1,12.74829187]
[1765066914853,6.86284875,132.12,132.11,3.06]
[1765066919255,112.80864875,132.12,132.1,9.38829187]
[1765066919451,112.7736,132.1,132.07,14.06153329]
[1765066919657,2.82493878,132.08,132.07,3.06]
[1765066920156,2.82493878,132.08,132.06,17.12153329]
[1765066920358,2.82493878,132.08,132.06,3.06]
[1765066920561,2.88297039,132.08,132.06,3.10933735]
[1765066920960,0.05803161,132.08,132.06,3.10933735]
[1765066924562,105.926,132.15,132.08,3.06]
[1765066924563,2.82493878,132.13,132.08,3.06]
[1765066924759,2.82493878,132.13,132.09,3.06]
[1765066925062,2.82493878,132.15,132.1,3.06]
[1765066925561,0.05031466,132.14,132.12,3.06]
[1765066933960,170.5171,132.13,132.11,0.05459602]
[1765066934161,174.92553561,132.13,132.11,0.05459602]
[1765066934662,6.8107,132.12,132.11,0.05459602]
[1765066936360,6.8127,132.09,132.06,3.06]
[1765066936559,64.58,132.08,132.06,3.06]
[1765066937153,64.63233948,132.08,132.06,3.11488999]
[1765066940373,6.8133,132.07,132.06,0.05488999]
[1765066944675,6.8133,132.07,132.06,3.27488999]
[1765066944873,64.63233948,132.08,132.06,3.27488999]
[1765066951481,0.05233948,132.08,132.06,3.27488999]
[1765066952984,0.00233948,132.08,132.07,12.5814424]
[1765066957803,0.00233948,132.08,132.07,4.74]
[1765066958100,0.00233948,132.08,132.07,18.80153329]
[1765066958893,0.00233948,132.08,132.07,17.28153329]
[1765066959997,0.00233948,132.08,132.07,18.80153329]
[1765066961004,0.00233948,132.08,132.07,17.28153329]
[1765066967007,0.00233948,132.08,132.07,3.22]
[1765066967197,0.00233948,132.08,132.07,17.28153329]
[1765066973408,0.00233948,132.08,132.07,3.22]
[1765066973902,0.00233948,132.08,132.07,17.24831809]
[1765066975410,0.00233948,132.08,132.07,3.22]
[1765066979212,0.00233948,132.08,132.07,17.25470565]
[1765066981211,0.00233948,132.08,132.07,3.22]
[1765066981411,4.40843561,132.2,132.11,3.15]
[1765066981622,4.40843561,132.2,132.13,3.15]
[1765066982114,4.40843561,132.21,132.14,3.15]
[1765066982302,4.40843561,132.21,132.16,0.05651648]
[1765066982510,0.05415348,132.19,132.16,3.20651648]
[1765066982914,0.05415348,132.19,132.16,0.05651648]
[1765066985618,0.05415348,132.19,132.16,3.20651648]
[1765066988421,2.87433998,132.19,132.16,0.05651648]
[1765066988814,9.68183998,132.19,132.16,0.05651648]
[1765066996017,105.8374,132.26,132.16,3.20651648]
[1765066996214,2.8201865,132.25,132.19,3.15]
[1765066996416,64.54,132.26,132.19,3.15]
[1765066996618,177.177,132.26,132.19,3.15]
[1765066996820,2.8201865,132.25,132.19,3.15]
[1765066997022,9.6246865,132.25,132.19,3.15]
[1765066997215,2.87669258,132.23,132.21,0.0508733]
[1765066998021,117.05939258,132.23,132.15,9.35188324]
[1765066998225,2.8201865,132.21,132.15,12.41188324]
[1765066998529,9.6262865,132.21,132.15,12.41188324]
[1765066998727,2.8201865,132.19,132.15,3.06]
[1765066998931,0.05072424,132.18,132.16,0.05119511]
[1765067004420,0.05072424,132.18,132.16,3.11119511]
[1765067020158,6.85852424,132.18,132.16,3.11119511]
[1765067023360,115.57661074,132.18,132.16,0.05119511]
[1765067023748,180.11661074,132.18,132.16,0.05119511]
[1765067024661,6.8097,132.14,132.13,9.35188324]
[1765067024857,9.6298865,132.14,132.12,3.06]
[1765067025864,9.68568748,132.14,132.12,3.11664153]
[1765067026061,9.68568748,132.14,132.12,12.46852477]
[1765067026357,9.68568748,132.14,132.12,3.11664153]
[1765067028861,0.05580098,132.14,132.12,3.11664153]
[1765067029065,0.05580098,132.14,132.13,3.32]
[1765067033569,105.98580098,132.14,132.12,0.05664153]
[1765067033769,108.80598748,132.14,132.12,0.05664153]
[1765067034258,108.80598748,132.14,132.12,3.37664153]
[1765067034457,115.61598748,132.14,132.12,3.37664153]
[1765067035067,6.86580098,132.14,132.12,3.37664153]
[1765067035262,9.68598748,132.14,132.12,3.37664153]
[1765067036066,9.68598748,132.14,132.12,0.05664153]
[1765067037670,9.68598748,132.14,132.12,3.37664153]
[1765067038268,9.68598748,132.14,132.12,0.05664153]
[1765067038474,115.61698748,132.14,132.12,0.05664153]
[1765067041376,0.05580098,132.14,132.12,3.28664153]
[1765067041675,64.56,132.17,132.13,3.23]
[1765067041869,64.56,132.17,132.14,3.23]
[1765067042665,64.61347297,132.17,132.14,3.23]
[1765067045374,0.05347297,132.17,132.14,12.58188324]
[1765067045574,0.05347297,132.17,132.15,3.23]
[1765067045776,0.05347297,132.17,132.16,3.23]
[1765067046781,67.3801865,132.21,132.16,3.23]
[1765067047877,0.04930054,132.2,132.16,3.23]
[1765067048376,0.04930054,132.2,132.18,3.23]
[1765067048574,0.04930054,132.2,132.18,3.27809835]
[1765067050685,0.04930054,132.2,132.18,0.04809835]
[1765067052180,0.04930054,132.2,132.18,3.27809835]
[1765067055289,105.8354,132.26,132.19,3.23]
[1765067055591,4.40366159,132.23,132.19,3.23]
[1765067056187,4.40366159,132.23,132.2,0.05444324]
[1765067059995,69.00366159,132.23,132.2,0.05444324]
[1765067063993,4.40366159,132.21,132.2,0.05444324]
[1765067064496,110.27936159,132.21,132.16,3.32]
[1765067064688,6.8068,132.2,132.16,3.32]
[1765067065399,0.04804904,132.19,132.17,3.36915697]
[1765067083122,0.04804904,132.19,132.17,12.72104021]
[1765067083715,0.04804904,132.19,132.18,3.32]
[1765067085720,105.854,132.24,132.19,3.32]
[1765067085721,174.83766159,132.24,132.19,3.32]
[1765067086218,174.83766159,132.24,132.2,3.32]
[1765067086523,64.58,132.24,132.21,3.32]
[1765067086714,64.58,132.24,132.22,3.32]
[1765067087015,64.58,132.24,132.22,3.375773]
[1765067090426,64.58,132.24,132.22,0.055773]
[1765067090623,170.4297,132.24,132.22,0.055773]
[1765067090829,4.40366159,132.23,132.22,0.055773]
[1765067091313,6.8058,132.22,132.18,9.35188324]
[1765067091519,4.40366159,132.21,132.18,9.35188324]
[1765067092023,4.40366159,132.21,132.18,12.60188324]
[1765067092525,4.45840049,132.21,132.18,12.65826995]
[1765067092729,4.45840049,132.21,132.18,0.05638671]
[1765067094820,4.45840049,132.21,132.18,9.40826995]
[1765067095027,4.45840049,132.21,132.18,0.05638671]
[1765067095229,4.45840049,132.21,132.18,9.40826995]
[1765067096628,11.26480049,132.21,132.18,0.05638671]
[1765067096929,11.26480049,132.21,132.18,12.65826995]
[1765067098535,11.26480049,132.21,132.18,3.30638671]
[1765067099131,11.26480049,132.21,132.18,12.65826995]
[1765067099326,11.26480049,132.21,132.18,3.30638671]
[1765067101430,6.8611389,132.21,132.18,3.30638671]
[1765067101727,0.0547389,132.21,132.19,3.27]
[1765067101927,0.0547389,132.21,132.2,3.27]
[1765067102124,0.0547389,132.21,132.2,12.62188324]
[1765067102334,64.58,132.24,132.21,3.27]
[1765067103028,64.58,132.24,132.22,3.27]
[1765067103331,64.58,132.24,132.22,3.32713908]
[1765067106931,64.58,132.24,132.22,0.05713908]
[1765067108527,4.40366159,132.23,132.22,0.05713908]
[1765067110339,2.81928926,132.23,132.22,0.05713908]
[1765067114743,67.41928926,132.23,132.22,0.05713908]
[1765067116143,6.8058,132.22,132.17,12.62188324]
[1765067116345,2.81928926,132.2,132.17,12.62188324]
[1765067116542,67.41928926,132.2,132.17,12.62188324]
[1765067117050,67.47114482,132.2,132.17,12.67737377]
[1765067117347,67.47114482,132.2,132.18,3.12]
[1765067119833,2.87114482,132.2,132.18,3.12]
[1765067124759,0.05185556,132.2,132.18,3.12]
[1765067125057,2.81928926,132.25,132.2,3.12]
[1765067125245,2.81928926,132.25,132.21,3.12]
[1765067125856,2.81928926,132.25,132.22,3.17266684]
[1765067132561,9.62358926,132.25,132.22,0.05266684]
[1765067132861,2.81928926,132.23,132.22,0.05266684]
[1765067134363,2.81928926,132.25,132.22,3.17266684]
[1765067135458,2.81928926,132.23,132.22,0.05266684]
[1765067138170,67.43928926,132.23,132.22,0.05266684]
[1765067138354,6.8058,132.22,132.18,3.12]
[1765067138560,2.81928926,132.2,132.18,3.12]
[1765067139365,2.87542594,132.2,132.18,3.17663304]
[1765067140872,2.87542594,132.2,132.18,0.05663304]
[1765067141673,2.87542594,132.2,132.18,3.17663304]
[1765067143779,115.56452594,132.2,132.18,0.05663304]
[1765067144368,64.62,132.19,132.18,0.05663304]
[1765067146872,6.8078,132.18,132.14,12.47780418]
[1765067147067,2.81928926,132.17,132.14,12.47780418]
[1765067147980,2.86762878,132.17,132.14,3.17261104]
[1765067152180,0.04833952,132.17,132.14,3.17261104]
[1765067152485,0.04833952,132.17,132.15,3.26]
[1765067158483,6.8068,132.2,132.16,3.15]
[1765067158975,9.62668926,132.19,132.16,3.15]
[1765067159476,9.68046863,132.19,132.16,3.19776957]
[1765067161384,6.86117937,132.19,132.16,3.19776957]
[1765067162795,180.14498926,132.18,132.16,0.04776957]
[1765067163389,180.14498926,132.18,132.12,3.15]
[1765067163390,105.9167,132.16,132.12,3.15]
[1765067163685,2.81928926,132.14,132.11,12.50780418]
[1765067167087,9.68434202,132.14,132.12,3.15]
[1765067168091,6.86505276,132.14,132.12,3.15]
[1765067170592,6.8105,132.13,132.11,0.05335926]
[1765067171596,6.8105,132.13,132.11,3.20335926]
[1765067172696,6.8105,132.13,132.11,0.05335926]
[1765067175288,6.8105,132.13,132.11,3.20335926]
[1765067175485,64.64,132.13,132.11,3.20335926]
[1765067176092,64.64,132.13,132.11,0.05335926]
[1765067176600,64.64,132.13,132.11,3.20335926]
[1765067178299,71.4506,132.13,132.11,0.05335926]
[1765067180001,75.85974949,132.13,132.11,0.05335926]
[1765067180306,181.79744949,132.13,132.11,0.05335926]
[1765067198916,75.85974949,132.13,132.11,3.27335926]
[1765067199111,0.05535276,132.14,132.11,3.27335926]
[1765067200109,6.86535276,132.14,132.11,3.27335926]
[1765067201014,117.15724949,132.13,132.11,0.05335926]
[1765067201208,64.62,132.12,132.11,0.05335926]
[1765067207113,0.05535276,132.14,132.09,9.35780418]
[1765067207314,6.8094,132.15,132.1,9.35780418]
[1765067207519,6.8094,132.15,132.12,9.35780418]
[1765067208122,6.85982914,132.15,132.12,9.40919694]
[1765067209123,64.66,132.14,132.12,12.67919694]
[1765067213725,71.49982914,132.15,132.14,3.22]
[1765067217429,71.49982914,132.15,132.12,9.40919694]
[1765067217430,6.8101,132.14,132.12,9.40919694]
[1765067217825,6.8101,132.14,132.12,12.62919694]
[1765067219629,112.7404,132.14,132.12,12.62919694]
[1765067219930,112.7404,132.14,132.08,4.40914949]
[1765067219931,112.7571,132.12,132.09,9.38349313]
[1765067220133,64.64,132.11,132.09,9.38349313]
[1765067220837,64.6893963,132.11,132.09,9.43712968]
[1765067221030,64.6893963,132.11,132.09,12.65712968]
[1765067221228,64.64,132.1,132.09,12.65712968]
[1765067222431,64.7093963,132.11,132.1,3.22]
[1765067222830,0.0493963,132.11,132.1,3.22]
[1765067223135,64.64,132.13,132.1,3.22]
[1765067223635,64.64,132.14,132.11,3.22]
[1765067224023,64.68848084,132.14,132.11,3.27280344]
[1765067232140,0.04848084,132.14,132.11,3.27280344]
[1765067232336,0.04848084,132.14,132.11,20.12059605]
[1765067232525,0.04848084,132.14,132.13,3.22]
[1765067240444,0.04848084,132.14,132.12,3.19]
[1765067249748,0.04848084,132.14,132.13,12.55704444]
[1765067254855,0.04848084,132.14,132.13,9.36704444]
[1765067255051,0.04848084,132.14,132.13,12.55704444]
[1765067256254,0.04848084,132.14,132.13,9.36704444]
[1765067256556,2.86844859,132.14,132.13,9.36704444]
[1765067256948,2.86844859,132.14,132.13,12.55704444]
[1765067259954,2.86844859,132.14,132.12,9.36704444]
[1765067260159,2.86844859,132.14,132.12,12.55704444]
[1765067260860,2.86844859,132.14,132.13,3.19]
[1765067261262,2.86844859,132.14,132.12,12.55704444]
[1765067261464,2.86844859,132.14,132.11,9.41984788]
[1765067261669,67.46844859,132.14,132.11,9.41984788]
[1765067262069,2.81996775,132.12,132.11,9.41984788]
[1765067262370,2.81996775,132.12,132.11,0.05280344]
[1765067269583,67.41996775,132.12,132.11,0.05280344]
[1765067275388,64.6,132.12,132.11,0.05280344]
[1765067278290,67.41996775,132.12,132.11,3.37280344]
[1765067279287,2.81996775,132.12,132.11,3.37280344]
[1765067280787,2.81996775,132.12,132.11,0.05280344]
[1765067290999,2.81996775,132.12,132.11,3.41280344]
[1765067291498,2.81996775,132.12,132.11,0.05280344]
[1765067294395,6.85838084,132.14,132.11,0.05280344]
[1765067294595,64.6,132.13,132.11,0.05280344]
[1765067294899,6.85838084,132.14,132.11,0.05280344]
[1765067295206,64.6,132.13,132.11,0.05280344]
[1765067295601,6.85838084,132.14,132.11,0.05280344]
[1765067295807,64.6,132.13,132.11,0.05280344]
[1765067296302,6.85838084,132.14,132.11,0.05280344]
[1765067296607,64.6,132.13,132.11,0.05280344]
[1765067296999,6.85838084,132.14,132.11,0.05280344]
[1765067297200,181.75881273,132.13,132.11,0.05280344]
[1765067298802,6.8114,132.11,132.07,12.46704444]
[1765067298994,11.22181273,132.11,132.07,12.46704444]
[1765067299594,11.22181273,132.11,132.07,3.1]
[1765067299799,4.41041273,132.09,132.08,0.05208291]
[1765067299999,69.01041273,132.09,132.08,0.05208291]
[1765067301304,64.6,132.09,132.08,0.05208291]
[1765067301503,0.05732603,132.1,132.08,0.05208291]
[1765067301696,64.6,132.09,132.08,0.05208291]
[1765067309207,0.05732603,132.1,132.08,3.15208291]
[1765067327842,6.8094,132.15,132.1,3.15]
[1765067328733,0.05182276,132.14,132.11,0.05032651]
[1765067328937,0.05182276,132.14,132.12,3.15]
[1765067333939,0.05182276,132.14,132.11,0.05032651]
[1765067334245,0.05182276,132.14,132.11,3.20032651]
[1765067334443,4.46223549,132.14,132.11,0.05032651]
[1765067335546,11.27223549,132.14,132.11,0.05032651]
[1765067340152,11.27223549,132.14,132.11,3.13032651]
[1765067342548,6.8106,132.13,132.11,3.13032651]
[1765067342748,64.6,132.12,132.11,3.13032651]
[1765067344656,6.8106,132.13,132.11,3.13032651]
[1765067345051,0.05182276,132.14,132.11,3.13032651]
[1765067345246,64.6,132.13,132.11,3.13032651]
[1765067345449,0.05182276,132.14,132.11,3.13032651]
[1765067345653,64.6,132.13,132.11,3.13032651]
[1765067346548,0.05182276,132.14,132.11,3.13032651]
[1765067346949,64.6,132.13,132.11,3.13032651]
[1765067347144,105.8853,132.2,132.11,3.13032651]
[1765067347356,64.6,132.19,132.14,3.08]
[1765067347952,4.41041273,132.17,132.13,9.36704444]
[1765067348147,4.41041273,132.17,132.13,3.08]
[1765067348354,64.65739667,132.16,132.14,0.0541488]
[1765067349160,64.65739667,132.16,132.14,3.1341488]
[1765067349460,64.65739667,132.16,132.14,0.0541488]
[1765067356364,2.82188687,132.15,132.14,0.0541488]
[1765067358861,2.82188687,132.15,132.1,12.51704444]
[1765067359060,2.82188687,132.13,132.1,12.51704444]
[1765067359259,67.40188687,132.13,132.1,12.51704444]
[1765067359462,67.40188687,132.13,132.1,3.15]
[1765067359663,67.44996182,132.13,132.1,3.20122508]
[1765067360161,64.62807495,132.13,132.1,3.20122508]
[1765067360563,64.62807495,132.13,132.11,3.15]
[1765067363167,0.04807495,132.13,132.11,3.15]
[1765067364261,0.04807495,132.13,132.12,3.15]
[1765067368468,0.04807495,132.13,132.11,3.15]
[1765067368671,2.86996182,132.13,132.11,3.15]
[1765067372066,2.86996182,132.13,132.1,9.41826952]
[1765067372275,2.86996182,132.13,132.1,0.05122508]
[1765067372772,2.86996182,132.13,132.1,3.20122508]
[1765067373771,2.86996182,132.13,132.11,3.15]
[1765067374362,0.04807495,132.13,132.11,3.15]
[1765067374569,0.04807495,132.13,132.11,12.51704444]
[1765067374769,0.04807495,132.13,132.12,3.15]
[1765067375368,0.04807495,132.13,132.11,12.51704444]
[1765067375564,0.04807495,132.13,132.11,3.15]
[1765067376165,0.04807495,132.13,132.12,3.15]
[1765067388002,0.04807495,132.13,132.12,12.51704444]
[1765067393302,0.04807495,132.13,132.12,3.15]
[1765067398620,0.04807495,132.13,132.11,9.36704444]
[1765067398913,2.82188687,132.12,132.11,3.38]
[1765067399105,2.82188687,132.12,132.1,12.79826952]
[1765067399612,2.82188687,132.12,132.11,3.38]
[1765067400011,2.82188687,132.12,132.1,9.41826952]
[1765067400210,71.3912,132.11,132.08,3.15]
[1765067400413,2.82188687,132.1,132.08,3.15]
[1765067400910,2.82188687,132.12,132.08,3.15]
[1765067401110,2.82188687,132.12,132.07,14.02782486]
[1765067401111,0.04840712,132.11,132.1,3.15]
[1765067405914,2.82188687,132.14,132.1,3.15]
[1765067406715,0.05142647,132.13,132.1,3.15]
[1765067406919,0.05142647,132.13,132.1,17.17782486]
[1765067407214,0.05142647,132.13,132.12,3.15]
[1765067413320,0.00142647,132.13,132.12,3.15]
[1765067417227,61.71303966,132.15,132.12,3.15]
[1765067417424,61.71303966,132.15,132.13,3.12]
[1765067417630,2.82188687,132.16,132.13,3.12]
[1765067418321,0.05832491,132.16,132.13,3.17639054]
[1765067425328,0.05832491,132.16,132.13,0.05639054]
[1765067425523,0.05832491,132.16,132.13,3.17639054]